Cogmind - Beta 15 @@@ ROGUE MODE // 2025.10.11 @ 20:08:08 Player: NQH Result: Destroyed by G-47 Trooper with Particle Gun Performance ------------- Evolutions (2) 1000 Regions Visited (5) 1000 Robots Destroyed (21) 105 Value Destroyed (526) 526 Prototype IDs (0) 0 Alien Tech Used (0) 0 Bonus (233) 233 TOTAL SCORE: 2864 Bonus ------- Follower Combat Kills 33 Entered Garrisons 200 Cogmind --------- Core Integrity 0/550 Matter 290/300 Energy 100/100 System Corruption 5% Temperature Cool (9) Movement Core (200) Ox3 Location -8/Garrison Parts ------- > --- POWER (1) -------- (None) > --- PROPULSION (3) --- (None) > --- UTILITY (5) ------ Signal Interpreter Hardened Medium Armor Plating > --- WEAPON (2) ------- Katana > --- INVENTORY (5) ---- (None) Peak State ------------ > --- POWER ------------ Light Ion Engine > --- PROPULSION ------- Light Treads Compact Wheel > --- UTILITY ---------- Sensor Array Signal Interpreter Hardened Medium Armor Plating Hardened Medium Armor Plating Hardened Medium Armor Plating > --- WEAPON ----------- Katana Katana > --- INVENTORY -------- Hardened Medium Armor Plating Heavy Explosive Trap Heavy Explosive Trap Heavy Explosive Trap Heavy Explosive Trap [Rating: 20] Favorites ----------- Power Light Ion Engine Engine Light Ion Engine Propulsion Light Treads Treads Light Treads Wheel Compact Wheel Utility Hardened Light Armor Plating Device Sensor Array Processor Signal Interpreter Protection Hardened Light Armor Plating Weapon Mace Impact Weapon Mace Slashing Weapon Katana Build | -11 -10 -10 -9 -8 -8 ------- Run | Yrd Mat Min Mat Mat Gar Slots Evolved 4 | . . . 2 2 . Power . | . . . . . . Propulsion 1 | . . . . 1 . Utility 3 | . . . 2 1 . Weapon . | . . . . . . Parts Attached 17 | . 4 1 3 8 1 Power 1 | . . . . 1 . Engine 1 | . . . . 1 . Core . | . . . . . . Reactor . | . . . . . . Propulsion 2 | . . 1 . 1 . Treads 1 | . . 1 . . . Leg . | . . . . . . Wheel 1 | . . . . 1 . Hover . | . . . . . . Flight . | . . . . . . Utility 10 | . 2 . 3 4 1 Device 1 | . . . 1 . . Storage . | . . . . . . Processor 1 | . . . 1 . . Hackware . | . . . . . . Protection 8 | . 2 . 1 4 1 Artifact . | . . . . . . Weapon 4 | . 2 . . 2 . Energy Gun . | . . . . . . Energy Cannon . | . . . . . . Ballistic Gun . | . . . . . . Ballistic Cannon . | . . . . . . Launcher . | . . . . . . Special Weapon . | . . . . . . Impact Weapon 2 | . 2 . . . . Slashing Weapon 2 | . . . . 2 . Piercing Weapon . | . . . . . . Special Melee Weapon . | . . . . . . Unidentified Prototypes . | . . . . . . Corrupted Parts 1 | . . . . 1 . System Corruption 1 | . . . . 1 . Parts Lost 8 | . . . . 8 . Power 1 | . . . . 1 . Propulsion 2 | . . . . 2 . Utility 4 | . . . . 4 . Weapon 1 | . . . . 1 . Highest Loss Streak 8 | . . . . 8 . To Critical Strikes . | . . . . . . Average Backups 1 | . . 2 . . . Power . | . . . . . . Propulsion . | . . . . . . Utility . | . . 1 . . . Weapon . | . . . . . . Tool/Special . | . . . . . . Unused Backups 3 | . . 3 . . . Power . | . . . . . . Propulsion . | . . . . . . Utility 1 | . . 1 . . . Weapon 2 | . . 2 . . . Tool/Special . | . . . . . . Average Slot Usage (%) 64 | . 40 59 76 77 25 Engine 1 | . . . . 6 . Treads 5 | . . 2 11 8 . Device 4 | . . . 10 8 . Processor 5 | . . . 10 9 9 Protection 24 | . 20 28 22 25 7 Impact Weapon 19 | . 19 28 22 9 . Slashing Weapon 2 | . . . . 8 9 Peak Build Rating 20 | . 8 9 12 20 7 Average Rating 10 | . 5 8 11 17 6 On Entrance 5 | . . 8 9 11 4 Naked Turns 56 | . 56 . . . . Heaviest Build 32 | . 14 14 19 32 10 Greatest Support 20 | 3 3 20 20 20 3 Greatest Overweight (x) 4 | . 4 4 . 1 3 Average Overweight (x) 1 | . 1 2 . . . Largest Inventory Capacity 5 | 5 5 5 5 5 5 Average Capacity 5 | 5 5 5 5 5 5 Most Carried 5 | . 4 5 5 5 1 Average Carried 4 | . . 4 4 4 . Final Capacity 5 | 5 5 5 5 5 5 Final Carried 5 | . 4 5 5 1 . Class Distribution -------------------- 100% | Mutant Dominant Class ---------------- Mutant | -10/Materials Mutant | -10/Mines Mutant | -9/Materials Mutant | -8/Materials Mutant | -8/Garrison Resources | -11 -10 -10 -9 -8 -8 ----------- Run | Yrd Mat Min Mat Mat Gar Matter Collected 350 | . . 80 154 116 . Remotely . | . . . . . . Salvage Created 853 | . . 17 210 528 98 Parts 28 | . . . 5 19 4 Haulers Intercepted 1 | . . . . 1 . Recyclers Shooed 2 | . . . . 2 . Parts Field Recycled . | . . . . . . Retrieved Matter . | . . . . . . Parts Self-Destructed . | . . . . . . Prevented . | . . . . . . Kills | -11 -10 -10 -9 -8 -8 ------- Run | Yrd Mat Min Mat Mat Gar Combat Hostiles Destroyed 10 | . . . 4 4 2 Melee 6 | . . . 3 1 2 AOE 3 | . . . . 3 . Classes Destroyed 7 | . . 1 4 2 . Worker 3 | . . 1 . 2 . Builder 2 | . . . 1 1 . Hauler 1 | . . . . 1 . Recycler 4 | . . . . 4 . Watcher 1 | . . . 1 . . Grunt 7 | . . . 2 3 2 Sentry 3 | . . . 2 1 . Best Kill Streak 5 | . . 1 5 4 2 Combat Bots Only 3 | . . . 2 3 2 Max Kills in Single Turn 3 | . . 1 1 3 1 Gunslinging . | . . . . . . Exploded 3 | . . . . 3 . Melee 1 | . . . 1 1 1 Uniques/NPCs Destroyed . | . . . . . . Combat | -11 -10 -10 -9 -8 -8 -------- Run | Yrd Mat Min Mat Mat Gar Hostile Shots Fired 145 | . . . 40 93 12 Missed 34 | . . . 14 18 2 Hits 111 | . . . 26 75 10 Projectile 111 | . . . 26 75 10 Critical Strikes 3 | . . . . 3 . Damage Taken 2159 | . . . 362 1623 174 Core 659 | . . . 98 533 28 Absorbed by Shields . | . . . . . . Core Remaining (%) 91 | 100 . 100 75 . . Volleys Fired . | . . . . . . Largest . | . . . . . . Hottest . | . . . . . . Shots Fired . | . . . . . . Gun . | . . . . . . Cannon . | . . . . . . Launcher . | . . . . . . Special . | . . . . . . Kinetic . | . . . . . . Thermal . | . . . . . . Explosive . | . . . . . . Electromagnetic . | . . . . . . Robot Hit Streak . | . . . . . . Robot Miss Streak . | . . . . . . Penetration Max . | . . . . . . Secondary Targets . | . . . . . . Shots Hit Robots 38 | . . 1 13 18 6 Core Hits 19 | . . . 2 14 3 Critical Kills . | . . . . . . Critical Parts Destroyed 5 | . . . 5 . . Critical Strikes 7 | . . . 5 1 1 Smash 5 | . . . 5 . . Sever 2 | . . . . 1 1 Melee Attacks 57 | . . 2 20 27 8 Impact 29 | . . 2 20 7 . Slashing 28 | . . . . 20 8 Piercing . | . . . . . . Sneak Attacks 11 | . . 1 2 8 . Combat Hostiles . | . . . . . . Follow-up Attacks 5 | . . . 2 3 . Damage Inflicted 1935 | . . 50 421 1277 187 Guns . | . . . . . . Cannons . | . . . . . . Explosions 436 | . . . . 436 . Melee 1491 | . . 50 421 833 187 Ramming 8 | . . . . 8 . Kinetic . | . . . . . . Thermal . | . . . . . . Explosive 436 | . . . . 436 . Electromagnetic . | . . . . . . Impact 787 | . . 50 421 316 . Slashing 704 | . . . . 517 187 Piercing . | . . . . . . Highest Corruption 5 | . . . . 5 5 Average Corruption 3 | . . . . 3 5 Corruption Purged . | . . . . . . Corruption Blocked . | . . . . . . Effects 6 | . . . . 6 . Message Errors 1 | . . . . 1 . Matter Fused 1 | . . . . 1 . Heat Flow Errors 2 | . . . . 2 . Data Loss (minor) 2 | . . . . 2 . Overload Shots . | . . . . . . Overflow Damage 401 | . . 10 211 180 . Projectiles . | . . . . . . Explosions . | . . . . . . Melee 401 | . . 10 211 180 . Knockbacks 2 | . . 1 . 1 . Impact 2 | . . 1 . 1 . Kinetic . | . . . . . . Secondary . | . . . . . . Self-Inflicted Damage 243 | . . . . 243 . Shots 4 | . . . . 4 . Rammed 2 | . . . . 2 . Targets Rammed 2 | . . . . 2 . Kicked . | . . . . . . Crushed . | . . . . . . Highest Temperature 291 | . . . . 291 . Average Temperature 123 | . . . . 123 . Received Heat Transfer 726 | . . . 114 522 90 Effects 1 | . . . . 1 . Energy Bleed 1 | . . . . 1 . Siege Activations . | . . . . . . Martial Activations . | . . . . . . Shielding Activations . | . . . . . . Robots Disrupted . | . . . . . . Combat Hostiles . | . . . . . . Robots Corrupted 4 | . . 1 3 . . Combat Hostiles 1 | . . . 1 . . Parts Fried 8 | . . 2 5 1 . Impact Corruptions 14 | . . 1 10 3 . Robots Melted . | . . . . . . Combat Hostiles . | . . . . . . Parts Melted . | . . . . . . Heat Transferred . | . . . . . . Parts Sabotaged . | . . . . . . Parts Stolen . | . . . . . . Parts Stripped . | . . . . . . Power Chain Reactions . | . . . . . . Alert | -11 -10 -10 -9 -8 -8 ------- Run | Yrd Mat Min Mat Mat Gar Maximum Alert Level . | . . . . . . Low Security (%) 100 | 100 100 100 100 100 100 Level 1 . | . . . . . . Level 2 . | . . . . . . Level 3 . | . . . . . . Level 4 . | . . . . . . Level 5 . | . . . . . . High Security . | . . . . . . Max Security . | . . . . . . Peak Influence 95 | . . 5 72 95 84 Initial 34 | . . . . 9 34 Average 8 | . . . 25 6 43 Influence Increases 409 | . . 5 174 180 50 Destroy 0b10 Robot/C 220 | . . . 100 80 40 Destroy 0b10 Robot/NC 55 | . . 5 10 40 . Destroy Leader 74 | . . . 32 32 10 Allied During Kill 2 | . . . 2 . . Disable Machine 45 | . . . 30 15 . Destroy Structure 13 | . . . . 13 . Influence Decreases 325 | . . 5 152 149 19 Entered New Map 32 | . . . . 13 19 Time Decay 218 | . . 5 137 76 . Lost Part 60 | . . . . 60 . Lost Ally 15 | . . . 15 . . Squads Dispatched 3 | . . . . 3 . Investigation . | . . . . . . Extermination . | . . . . . . Reinforcement 2 | . . . . 2 . Assault . | . . . . . . Garrison 1 | . . . . 1 . Intercept . | . . . . . . Searches Triggered . | . . . . . . Construction Impeded . | . . . . . . Haulers Reinforced . | . . . . . . Active Scanning Responses . | . . . . . . Cargo Convoy Interrupts . | . . . . . . Stealth | -11 -10 -10 -9 -8 -8 --------- Run | Yrd Mat Min Mat Mat Gar Distress Signals 3 | . . . 3 . . Communications Jammed . | . . . . . . Distress Signals . | . . . . . . Times Spotted 26 | . . . 11 12 3 Peak Tracking Total 11 | . . . 6 11 3 Tactical Retreats . | . . . . . . Traps | -11 -10 -10 -9 -8 -8 ------- Run | Yrd Mat Min Mat Mat Gar Traps Triggered 7 | . . . 1 6 . Indirectly . | . . . . . . Trap Hack Attempts . | . . . . . . Triggered . | . . . . . . Disarmed . | . . . . . . Reprogrammed . | . . . . . . Reused . | . . . . . . Traps Extracted . | . . . . . . Installed 4 | . . . . 4 . Triggered . | . . . . . . Most Traps Carried 4 | . . 4 4 4 . Machines | -11 -10 -10 -9 -8 -8 ---------- Run | Yrd Mat Min Mat Mat Gar Machines Disabled 3 | . . . 2 1 . Max in Single Turn 1 | . . . 1 1 . Machines Repaired . | . . . . . . Machines Dismantled . | . . . . . . Machines Sabotaged . | . . . . . . Overloaded Fab Kills . | . . . . . . Hacking | -11 -10 -10 -9 -8 -8 --------- Run | Yrd Mat Min Mat Mat Gar Machines Accessed 2 | . . . . 2 . Terminals . | . . . . . . Fabricators . | . . . . . . Repair Stations . | . . . . . . Recycling Units 1 | . . . . 1 . Scanalyzers . | . . . . . . Garrison Access 1 | . . . . 1 . Total Hacks 3 | . . . . 3 . Successful 2 | . . . . 2 . Failed 1 | . . . . 1 . Catastrophic . | . . . . . . Database Lockouts . | . . . . . . Manual . | . . . . . . Terminals . | . . . . . . Fabricators . | . . . . . . Repair Stations . | . . . . . . Recycling Units 2 | . . . . 2 . Scanalyzers . | . . . . . . Garrison Access 1 | . . . . 1 . Terminal Hacks . | . . . . . . Fabricator Hacks . | . . . . . . Repair Station Hacks . | . . . . . . Recycling Unit Hacks 1 | . . . . 1 . Retrieve Matter 1 | . . . . 1 . Scanalyzer . | . . . . . . Garrison Access Hacks 1 | . . . . 1 . Unlock Access 1 | . . . . 1 . Unauthorized Hacks . | . . . . . . Terminals . | . . . . . . Fabricators . | . . . . . . Repair Stations . | . . . . . . Recycling Units . | . . . . . . Scanalyzers . | . . . . . . Garrison Access . | . . . . . . Data Cores Recovered . | . . . . . . Used . | . . . . . . Hacking Detections 1 | . . . . 1 . Full Trace Events . | . . . . . . Feedback Events . | . . . . . . Feedback Blocked . | . . . . . . Robot Schematics Acquired . | . . . . . . Robots Built . | . . . . . . Authchips . | . . . . . . Time . | . . . . . . Total Robot Build Rating . | . . . . . . Part Schematics Acquired . | . . . . . . Parts Built . | . . . . . . Authchips . | . . . . . . Time . | . . . . . . Total Part Build Rating . | . . . . . . Parts Repaired . | . . . . . . Time . | . . . . . . Parts Recycled . | . . . . . . Recycled Matter . | . . . . . . Retrieved Matter . | . . . . . . Retrieved Components . | . . . . . . Parts Scanalyzed . | . . . . . . Part Schematics Acquired . | . . . . . . Parts Damaged . | . . . . . . Bothacking | -11 -10 -10 -9 -8 -8 ------------ Run | Yrd Mat Min Mat Mat Gar Used RIF Installer . | . . . . . . Robots Hacked . | . . . . . . Non-combat . | . . . . . . Combat . | . . . . . . Robot Hacks Applied . | . . . . . . Relay Couplers Released . | . . . . . . Fabnet Peak Effective % . | . . . . . . Robots Rewired . | . . . . . . Allies Hacked . | . . . . . . Hacks Repelled . | . . . . . . Allies | -11 -10 -10 -9 -8 -8 -------- Run | Yrd Mat Min Mat Mat Gar Total Allies 1 | . . 1 . . . Largest Group 1 | . . 1 1 . . Highest-Rated Group 31 | . . 31 31 . . Highest-Rated Ally 31 | . . 31 31 . . Total Orders . | . . . . . . Ally Attacks 12 | . . . 12 . . Total Damage 207 | . . . 207 . . Kills 1 | . . . 1 . . Allies Corrupted . | . . . . . . Allies Melted . | . . . . . . Intel | -11 -10 -10 -9 -8 -8 ------- Run | Yrd Mat Min Mat Mat Gar Active Infowar (turns) 696 | . . . 313 383 . Sensors 696 | . . . 313 383 . Robot Analysis Total . | . . . . . . Derelict Logs Recovered 1 | . . 1 . . . Drone Launches . | . . . . . . Drone Recoveries . | . . . . . . Exploration | -11 -10 -10 -9 -8 -8 ------------- Run | Yrd Mat Min Mat Mat Gar Turns Passed 1467 | 9 215 464 341 391 47 Spaces Moved 757 | 18 173 200 180 171 15 Core 362 | 18 173 148 . 8 15 Treads 347 | . . 52 180 115 . Legs . | . . . . . . Wheels 48 | . . . . 48 . Hover . | . . . . . . Flight . | . . . . . . Fastest Speed 50 | 50 50 160 160 50 50 Average Speed 169 | 50 119 226 160 184 60 Slowest Speed 250 | 50 250 250 160 240 200 Overloaded Moves . | . . . . . . Propulsion Burnouts . | . . . . . . Robots Hopped . | . . . . . . Potential Cave-ins . | . . . . . . Cave-ins Triggered . | . . . . . . Exploration Rate (%) 22 | 3 32 50 24 20 4 Regions Visited 5 Branch Regions 1 Pre-discovered Areas . | . . . . . . Known Exits Taken 3 | . . 1 1 1 . Unknown Exits Taken 2 | 1 1 . . . . Scrap Searched 1 | . . 1 . . . Spaces Dug . | . . . . . . Terrain Destroyed 13 | . . . . 13 . Melee . | . . . . . . Projectile . | . . . . . . AOE 13 | . . . . 13 . Terrain Rammed . | . . . . . . Walls Destroyed . | . . . . . . Machines Disabled . | . . . . . . Actions | -11 -10 -10 -9 -8 -8 --------- Run | Yrd Mat Min Mat Mat Gar Total 865 | 17 180 210 201 216 41 Wait 17 | . . . . . 17 Move 752 | 17 172 199 179 170 15 Hop . | . . . . . . Pick Up 10 | . 4 5 . 1 . Fast Attach 12 | . 4 1 3 4 . Attach 3 | . . . 1 1 1 Detach 1 | . . . 1 . . Swap 4 | . . . . 4 . Drop 14 | . . 4 . 10 . Fire . | . . . . . . Melee 46 | . . 1 17 20 8 Ram 2 | . . . . 2 . Kick . | . . . . . . Crush . | . . . . . . Escape Stasis . | . . . . . . Rewire . | . . . . . . Trap 4 | . . . . 4 . Miscellaneous . | . . . . . . Route ------- -11/Scrapyard -10/Materials -10/Mines (discovered 2 exits: *Mat x2) -9/Materials (discovered 2 exits: *Mat / *Min) -8/Materials (discovered 2 exits: [*Fac] / Gar) -8/Garrison History --------- Turn | Location | Event 3 | -11/Scrapyard | Discovered new exit (range 15) 10 | -11/Scrapyard | Entered Materials 123 | -10/Materials | Discovered new exit (range 9) 225 | -10/Materials | Entered Mines 309 | -10/Mines | Build established: Mutant 381 | -10/Mines | Identified exit to Materials 391 | -10/Mines | Found a hidden stash of uninstalled traps 633 | -10/Mines | Received a Mining Laser from a helpful Derelict 671 | -10/Mines | Discovered exit to Materials (range 10) 689 | -10/Mines | Entered Materials 689 | -9/Materials | Accompanied by 1 ally 689 | -9/Materials | Evolved 2 slots: Utility x2 833 | -9/Materials | Discovered new exit (range 13) 855 | -9/Materials | Identified exit to Mines 1011 | -9/Materials | Discovered new exit (range 13) 1028 | -9/Materials | Identified exit to Materials 1030 | -9/Materials | Entered another Materials area 1030 | -8/Materials | Evolved 2 slots: Propulsion x1, Utility x1 1405 | -8/Materials | Discovered new exit (range 15) 1413 | -8/Materials | Core integrity fell below 50% 1417 | -8/Materials | Core integrity fell below 20% 1420 | -8/Materials | Identified exit to Garrison 1421 | -8/Materials | Entered Garrison 1444 | -8/Garrison | Lost 8 parts (1p2n4u1w) 1468 | -8/Garrison | Destroyed by G-47 Trooper with Particle Gun Last Messages --------------- 01413_ Com. Wheel destroyed. 01413_ Installed Heavy Explosive Trap. 01414_ Triggered Heavy Explosive Trap. 01414_ An explosion rips through the floor. 01414_ Dropped Heavy Explosive Trap. 01414_ Installed Heavy Explosive Trap. 01415_ Triggered Heavy Explosive Trap. 01415_ An explosion rips through the floor. 01417_ Slammed into Y-45 Defender. 01419_ T-07 Excavator is excavating. 01420_ Connecting with Garrison Access... >>Unlock Access door unlocked. 01420_ EXIT=UNLOCKED: GARRISON LOCATION=GARRISON GOAL=ESCAPE 01448_ G-50 Soldier Lgt. Angular Momentum Engine severed. 01458_ G-50 Soldier destroyed. 01461_ G-47 Trooper destroyed. Map ----- +----------------------------------------------------+ | | | | | | | | | | | | | | | | | ?????????????????????????????????????????????????? | | ?????????????????????????????????????????????????? | | ?????????????????????????????????????????????????? | | ?????????????????????????????????????????????????? | | ?????????????????????????????????????????????????? | | ?????????????????????????????????????????????????? | | ?????????????????????????????????????????????????? | | ?????????????????????????????????????????????????? | | ?????????????????????????????????????????????????? | | ?????????????????????????????????????????????????? | | ???????????????????????????#######???????????????? | | ???????????????????????????# #???????????????? | | ???????????????????????????# #???????????????? | | ??????????????????????###??# #???????????????? | | ?????????????????????## ##### #???????????????? | | ????????????????????## =#### #???????????????? | | ????????????????????# ==g% #???????????????? | | ????????????????????# # @#### #???????????????? | | ????????????????????# # #??# #???????????????? | | ????????????????????#######??# #???????????????? | | ?????????????????????????????# #???????????????? | | ?????????????????????????????# #???????????????? | | ?????????????????????????????# #???????????????? | | ?????????????????????????????# #???????????????? | | ?????????????????????????????+ #???????????????? | | ?????????????????????????????+ #???????????????? | | ?????????????????????????????# #???????????????? | | ?????????????????????????????# #???????????????? | | ?????????????????????????????# #???????????????? | | ?????????????????????????????# #???????????????? | | ?????????????????????????????+ #???????????????? | | ?????????????????????????????+ #???????????????? | | ?????????????????????????????? #???????????????? | | ?????????????????????????????? ????????????????? | | ?????????????????????????????? ????????????????? | | ?????????????????????????????????????????????????? | | ?????????????????????????????????????????????????? | | ?????????????????????????????????????????????????? | | ?????????????????????????????????????????????????? | | ?????????????????????????????????????????????????? | | ?????????????????????????????????????????????????? | | ?????????????????????????????????????????????????? | +----------------------------------------------------+ Best States ------------- Heat Dissipation 31 Energy Generation 10 Energy Capacity 125 Matter Stores 300 Matter Capacity 300 Sight Range 16 Robot Scan Range 14 Terrain Scan Density 10 Armor Coverage 675 Evasion (%) 50 Recoil Reduction 1 Item Schematics ----------------- None Robot Schematics ------------------ None Fabricated ------------ Nothing Repaired ---------- Nothing Alien Tech Used ----------------- None Achievements -------------- None Challenges ------------ None Game ------ Seed DisruptionOvertunedDeflector Manual? 0 Play Time 00:07:21 Cumulative 27.7 hours Start 2025.10.11 @ 20:01:04 End 2025.10.11 @ 20:08:08 Sessions 1 Manual Loads 0 Difficulty Rogue Special Mode None Game No. 109 Rogue 109 Adventurer 0 Explorer 0 Win Type - Total 0 Types 0/0/0/0/0/0/0/0/0/0 Lore% 11 Gallery% 29 Achievement% 27 Wizard Run 0 Options --------- Layout 1 ASCII 0 Keyboard 1 Movement Vi Keybinds 0 Fullscreen 1 Font 16/SmallcapsGlow Map View 55x38 Zoom Use 0% Tactical HUD 1 Map Filters NONE Filters NONE Steam 1 RUN: 252df71b-8f58-48d4-be15-d09a5903c01a